Cogmind - Beta 13 @@@ ROGUE MODE // 2024.07.07 @ 21:24:42 Player: Annull999 Result: Destroyed by G-34 Mercenary with Small Laser Performance ------------- Evolutions (0) 0 Regions Visited (2) 400 Robots Destroyed (12) 60 Value Destroyed (493) 493 Prototype IDs (0) 0 Alien Tech Used (0) 0 Bonus (0) 0 TOTAL SCORE: 953 Bonus ------- None Cogmind --------- Core Integrity 0/250 Matter 300/300 Energy 250/250 System Corruption 0% Temperature Cool (6) Movement Walking (400) Ox4 Location -10/Mines Parts ------- > --- POWER (1) -------- Ion Engine > --- PROPULSION (2) --- Aluminum Leg > --- UTILITY (2) ------ High-capacity Storage Unit > --- WEAPON (2) ------- (None) > --- INVENTORY (20) --- Ion Engine Light Nuclear Core Aluminum Leg Aluminum Leg Aluminum Leg Aluminum Leg Aluminum Leg Wheel Wheel Huge Storage Unit Rocket Launcher Proton Bomb Trap Proton Bomb Trap Proton Bomb Trap Proton Bomb Trap Peak State ------------ > --- POWER ------------ Light Ion Engine > --- PROPULSION ------- Aluminum Leg Aluminum Leg > --- UTILITY ---------- Small Storage Unit High-capacity Storage Unit > --- WEAPON ----------- Assault Rifle Assault Rifle > --- INVENTORY -------- Light Ion Engine Aluminum Leg Wheel Wheel Huge Storage Unit Beam Cannon Beam Cannon [Rating: 7] Favorites ----------- Power Ion Engine Engine Ion Engine Propulsion Aluminum Leg Leg Aluminum Leg Utility High-capacity Storage Unit Storage High-capacity Storage Unit Weapon Beam Cannon Energy Cannon Beam Cannon Ballistic Gun Assault Rifle Build | -11 -10 -10 ------- Run | Yrd Mat Min Slots Evolved . | . . . Power . | . . . Propulsion . | . . . Utility . | . . . Weapon . | . . . Parts Attached 15 | 6 7 2 Power 3 | 1 2 . Engine 3 | 1 2 . Core . | . . . Reactor . | . . . Propulsion 6 | 2 2 2 Treads . | . . . Leg 6 | 2 2 2 Wheel . | . . . Hover . | . . . Flight . | . . . Utility 2 | 1 1 . Device . | . . . Storage 2 | 1 1 . Processor . | . . . Hackware . | . . . Protection . | . . . Artifact . | . . . Weapon 4 | 2 2 . Energy Gun . | . . . Energy Cannon 2 | . 2 . Ballistic Gun 2 | 2 . . Ballistic Cannon . | . . . Launcher . | . . . Special Weapon . | . . . Impact Weapon . | . . . Slashing Weapon . | . . . Piercing Weapon . | . . . Special Melee Weapon . | . . . Unidentified Prototypes . | . . . Parts Lost 9 | . 6 3 Power 2 | . 2 . Propulsion 3 | . 2 1 Utility . | . . . Weapon 4 | . 2 2 Highest Loss Streak 6 | . 6 2 To Critical Strikes . | . . . Average Slot Usage (%) 76 | . 81 72 Engine 12 | . 11 14 Leg 27 | . 26 28 Storage 14 | . 14 14 Energy Cannon 12 | . 10 15 Ballistic Gun 8 | . 17 . Naked Turns . | . . . Heaviest Build 51 | 12 51 51 Greatest Support 20 | 20 20 20 Greatest Overweight (x) 4 | 3 4 2 Average Overweight (x) 1 | . . 2 Largest Inventory Capacity 20 | 8 20 20 Average Capacity 16 | 7 14 20 Most Carried 15 | 7 8 15 Average Carried 8 | 5 6 9 Final Capacity 20 | 8 20 20 Final Carried 15 | 6 7 15 Class Distribution -------------------- 100% | Mutant Dominant Class ---------------- Mutant | -10/Materials Mutant | -10/Mines Resources | -11 -10 -10 ----------- Run | Yrd Mat Min Matter Collected 471 | 253 198 20 Remotely . | . . . Salvage Created 504 | . 315 189 Parts 24 | . 15 9 Haulers Intercepted . | . . . Recyclers Shooed . | . . . Parts Field Recycled . | . . . Retrieved Matter . | . . . Parts Self-Destructed . | . . . Prevented . | . . . Kills | -11 -10 -10 ------- Run | Yrd Mat Min Combat Hostiles Destroyed 12 | . 8 4 Guns 5 | . 5 . Cannons 6 | . 2 4 Classes Destroyed 1 | . 1 . Grunt 12 | . 8 4 Best Kill Streak 2 | . 2 1 Combat Bots Only 2 | . 2 1 Max Kills in Single Turn 1 | . 1 1 Gunslinging . | . . . Exploded . | . . . Melee . | . . . Uniques/NPCs Destroyed . | . . . Combat | -11 -10 -10 -------- Run | Yrd Mat Min Hostile Shots Fired 134 | . 87 47 Missed 43 | . 26 17 Damage Taken 1213 | . 789 424 Core 258 | . 171 87 Absorbed by Shields . | . . . Core Remaining (%) 100 | 100 . . Volleys Fired 60 | . 38 22 Largest 2 | . 2 2 Hottest 120 | . 120 120 Shots Fired 93 | . 69 24 Gun 51 | . 51 . Cannon 42 | . 18 24 Launcher . | . . . Special . | . . . Kinetic 51 | . 51 . Thermal 42 | . 18 24 Explosive . | . . . Electromagnetic . | . . . Robot Hit Streak 10 | . 10 5 Robot Miss Streak 5 | . 5 2 Penetration Max . | . . . Secondary Targets 2 | . 2 . Max Gunslinging Chain 1 | . 1 . Shots Hit Robots 57 | . 40 17 Core Hits 20 | . 14 6 Critical Kills . | . . . Critical Parts Destroyed . | . . . Critical Strikes . | . . . Melee Attacks . | . . . Impact . | . . . Slashing . | . . . Piercing . | . . . Sneak Attacks . | . . . Combat Hostiles . | . . . Follow-up Attacks . | . . . Damage Inflicted 867 | . 572 295 Guns 357 | . 357 . Cannons 507 | . 212 295 Explosions . | . . . Melee . | . . . Ramming 3 | . 3 . Kinetic 357 | . 357 . Thermal 507 | . 212 295 Explosive . | . . . Electromagnetic . | . . . Impact . | . . . Slashing . | . . . Piercing . | . . . Highest Corruption . | . . . Average Corruption . | . . . Corruption Purged . | . . . Corruption Blocked . | . . . Overload Shots . | . . . Overflow Damage . | . . . Projectiles . | . . . Explosions . | . . . Melee . | . . . Knockbacks . | . . . Impact . | . . . Kinetic . | . . . Secondary . | . . . Self-Inflicted Damage . | . . . Shots . | . . . Rammed . | . . . Targets Rammed 1 | . 1 . Kicked 1 | . 1 . Crushed . | . . . Highest Temperature 383 | . 383 220 Average Temperature 97 | . 113 81 Received Heat Transfer 741 | . 465 276 Effects 4 | . 3 1 Interference 2 | . 1 1 Damage (minor) 2 | . 2 . Siege Activations . | . . . Robots Corrupted . | . . . Combat Hostiles . | . . . Parts Fried . | . . . Impact Corruptions . | . . . Robots Melted 1 | . 1 . Combat Hostiles 1 | . 1 . Parts Melted 3 | . 2 1 Heat Transferred 1073 | . 444 629 Parts Sabotaged . | . . . Parts Stolen . | . . . Parts Stripped . | . . . Power Chain Reactions . | . . . Alert | -11 -10 -10 ------- Run | Yrd Mat Min Peak Influence 217 | . 217 130 Initial 6 | . . 6 Average 78 | . 105 63 Maximum Alert Level 1 | . 1 . Low Security (%) 93 | 100 86 100 Level 1 6 | . 13 . Level 2 . | . . . Level 3 . | . . . Level 4 . | . . . Level 5 . | . . . High Security . | . . . Max Security . | . . . Squads Dispatched 2 | . 2 . Investigation . | . . . Extermination . | . . . Reinforcement 2 | . 2 . Assault . | . . . Garrison . | . . . Intercept . | . . . Searches Triggered . | . . . Construction Impeded . | . . . Haulers Reinforced . | . . . Active Scanning Responses . | . . . Cargo Convoy Interrupts . | . . . Stealth | -11 -10 -10 --------- Run | Yrd Mat Min Distress Signals 1 | . 1 . Communications Jammed . | . . . Distress Signals . | . . . Times Spotted 21 | . 14 7 Peak Tracking Total 5 | . 5 2 Tactical Retreats 2 | . 1 1 Traps | -11 -10 -10 ------- Run | Yrd Mat Min Traps Triggered . | . . . Indirectly . | . . . Trap Hack Attempts . | . . . Triggered . | . . . Disarmed . | . . . Reprogrammed . | . . . Reused . | . . . Traps Extracted . | . . . Installed . | . . . Triggered . | . . . Most Traps Carried 4 | . . 4 Machines | -11 -10 -10 ---------- Run | Yrd Mat Min Machines Disabled 2 | . 1 1 Max in Single Turn 1 | . 1 1 Machines Repaired . | . . . Machines Dismantled . | . . . Machines Sabotaged . | . . . Overloaded Fab Kills . | . . . Hacking | -11 -10 -10 --------- Run | Yrd Mat Min Machines Accessed 1 | . 1 . Terminals 1 | . 1 . Fabricators . | . . . Repair Stations . | . . . Recycling Units . | . . . Scanalyzers . | . . . Garrison Access . | . . . Total Hacks 4 | . 4 . Successful 2 | . 2 . Failed 2 | . 2 . Catastrophic . | . . . Database Lockouts . | . . . Manual 2 | . 2 . Terminals 4 | . 4 . Fabricators . | . . . Repair Stations . | . . . Recycling Units . | . . . Scanalyzers . | . . . Garrison Access . | . . . Terminal Hacks 1 | . 1 . Terminal Index 1 | . 1 . Fabricator Hacks . | . . . Repair Station Hacks . | . . . Recycling Unit Hacks . | . . . Scanalyzer . | . . . Garrison Access Hacks . | . . . Unauthorized Hacks 1 | . 1 . Terminals 1 | . 1 . Botnet 1 | . 1 . Fabricators . | . . . Repair Stations . | . . . Recycling Units . | . . . Scanalyzers . | . . . Garrison Access . | . . . Data Cores Recovered . | . . . Used . | . . . Hacking Detections 1 | . 1 . Full Trace Events . | . . . Feedback Events . | . . . Feedback Blocked . | . . . Robot Schematics Acquired . | . . . Robots Built . | . . . Authchips . | . . . Time . | . . . Total Robot Build Rating . | . . . Part Schematics Acquired . | . . . Parts Built . | . . . Authchips . | . . . Time . | . . . Total Part Build Rating . | . . . Parts Repaired . | . . . Time . | . . . Parts Recycled . | . . . Recycled Matter . | . . . Retrieved Matter . | . . . Retrieved Components . | . . . Parts Scanalyzed . | . . . Part Schematics Acquired . | . . . Parts Damaged . | . . . Bothacking | -11 -10 -10 ------------ Run | Yrd Mat Min Used RIF Installer . | . . . Robots Hacked . | . . . Non-combat . | . . . Combat . | . . . Robot Hacks Applied . | . . . Relay Couplers Released . | . . . Fabnet Peak Effective % . | . . . Robots Rewired . | . . . Allies Hacked . | . . . Hacks Repelled . | . . . Allies | -11 -10 -10 -------- Run | Yrd Mat Min Total Allies . | . . . Largest Group . | . . . Highest-Rated Group . | . . . Highest-Rated Ally . | . . . Total Orders . | . . . Ally Attacks . | . . . Total Damage . | . . . Kills . | . . . Allies Corrupted . | . . . Allies Melted . | . . . Intel | -11 -10 -10 ------- Run | Yrd Mat Min Robot Analysis Total . | . . . Derelict Logs Recovered 1 | . . 1 Drone Launches . | . . . Drone Recoveries . | . . . Exploration | -11 -10 -10 ------------- Run | Yrd Mat Min Turns Passed 987 | 70 454 463 Spaces Moved 375 | 48 177 150 Core 17 | 17 . . Treads . | . . . Legs 358 | 31 177 150 Wheels . | . . . Hover . | . . . Flight . | . . . Fastest Speed 50 | 50 120 260 Average Speed 200 | 110 175 260 Slowest Speed 400 | 200 400 260 Overloaded Moves . | . . . Propulsion Burnouts . | . . . Robots Hopped . | . . . Cave-ins Triggered . | . . . Exploration Rate (%) 24 | 4 42 26 Regions Visited 2 Branch Regions 1 Pre-discovered Areas 1 | . . 1 Known Exits Taken . | . . . Unknown Exits Taken 2 | 1 1 . Scrap Searched . | . . . Spaces Dug . | . . . Terrain Destroyed . | . . . Melee . | . . . Projectile . | . . . AOE . | . . . Terrain Rammed . | . . . Walls Destroyed . | . . . Machines Disabled . | . . . Actions | -11 -10 -10 --------- Run | Yrd Mat Min Total 519 | 65 254 200 Wait 27 | . 13 14 Move 373 | 47 176 150 Hop . | . . . Pick Up 35 | 12 13 10 Fast Attach . | . . . Attach 15 | 6 7 2 Detach . | . . . Swap . | . . . Drop 8 | . 6 2 Fire 60 | . 38 22 Melee . | . . . Ram . | . . . Kick 1 | . 1 . Crush . | . . . Escape Stasis . | . . . Rewire . | . . . Trap . | . . . Miscellaneous . | . . . Route ------- -11/Scrapyard -10/Materials -10/Mines History --------- Turn | Location | Event 14 | -11/Scrapyard | Discovered new exit (range 16) 71 | -11/Scrapyard | Entered Materials 317 | -10/Materials | Build established: Mutant 361 | -10/Materials | Core integrity fell below 50% 420 | -10/Materials | Lost 6 parts (2p2n2w) 457 | -10/Materials | Discovered new exit (range 15) 525 | -10/Materials | Entered Mines 733 | -10/Mines | Core integrity fell below 20% 831 | -10/Mines | Learned location of Zion (-7) 875 | -10/Mines | Found a hidden stash of uninstalled traps 923 | -10/Mines | Received a Rocket Launcher from a helpful Derelict 988 | -10/Mines | Destroyed by G-34 Mercenary with Small Laser Last Messages --------------- 00850_ K-01 Serf collects debris. 00875_ A stash of uninstalled traps is collected here! 00881_ Acquired Proton Bomb Trap. 00917_ A derelict emerges from the shadows. 00918_ LO-BDO(g): "Some of my friends down here think you need a mining laser when you travel the depths." 00919_ LO-BDO(g): "You know what I say? NO!" 00920_ LO-BDO(g): "Everyone knows a good old rocket launcher goes a long way." 00921_ LO-BDO(g): "Need to get rid of a swarm? Done. Need a big hole in the wall? Done." 00922_ LO-BDO(g): "Need a small hole in the wall? Leave that to the mining laser wimps, I say!" 00923_ LO-BDO(g): "Would you like a rocket launcher? I know I would if I were you, so I'm going to lend you mine." 00923_ LO-BDO(g) slips back into the shadows. 00931_ Acquired Rocket Launcher. 00974_ Beam Cannon destroyed. 00976_ K-01 Serf destroyed. 00984_ Aluminum Leg destroyed. Map ----- +----------------------------------------------------+ | ?????????????????????????????????????????????????? | | ?????????????????????????????????????????????????? | | ?????????????????????????##########??????????????? | | ?????????????????????????# #??????????????? | | ?????????????????????????# #??????????????? | | ?????????????##########??# """#??????????????? | | ?????? #??# """#???????????#### | | ?????????????# ###### #### """##########?## | | ????????????????????# % #?# | | ????????????????????# #### " "######## #?# | | ????????????????????# #??# """#??????# #?# | | ????????????????????# #??# """#??????# ### | | ????????????????????# #??# = #??????# ## | | ????????????????????# #??###%######???#### ## | | ????????????????????# ######[#????????# % | | ????????????????????# #????????# | | ????????????????????######## #????????# ###### | | ???????????????????????????# #????????# ?????#### | | ?????????????????###???????# #????????# ????????# | | ????????????????## ##??????# #????????# ????????? | | ????????????????# ##?????# #??#####?# ?????????? | | ????????????????# ####### #?## ### ?????????? | | ????????????????# g ## ### ## ?????????? | | ???????????????## g=% ## #???????? | | ???????????????# ## ##### #???????? | | ???????????????# ### @##??## #???????? | | ??????????????# #?# #???# #########???????? | | ?????????????# #?# #??# #???????????????? | | ????????????# ### ? #???????????????? | | ????????????## #### ##### #???????????????? | | ?????????????## #???# #???# ???????????????? | | ??????????????# #????# ##???###???????????????? | | ??????????????# ?????## ##??????????????????????? | | ??????????????# ??????####???????????????????????? | | ??????????????#??????????????????????????????????? | | ?????????????????????????????????????????????????? | | ?????????????????????????????????????????????????? | | ?????????????????????????????????????????????????? | | ?????????????????????????????????????????????????? | | ?????????????????????????????????????????????????? | | ?????????????????????????????????????????????????? | | ?????????????????????????????????????????????????? | | ?????????????????????????????????????????????????? | | ?????????????????????????????????????????????????? | | ?????????????????????????????????????????????????? | | ?????????????????????????????????????????????????? | | ?????????????????????????????????????????????????? | | ?????????????????????????????????????????????????? | | ?????????????????????????????????????????????????? | | ?????????????????????????????????????????????????? | +----------------------------------------------------+ Best States ------------- Heat Dissipation 25 Energy Generation 10 Energy Capacity 250 Matter Stores 300 Matter Capacity 300 Sight Range 16 Terrain Scan Density 10 Evasion (%) 55 Item Schematics ----------------- None Robot Schematics ------------------ None Fabricated ------------ Nothing Alien Tech Used ----------------- None Achievements -------------- Crack Shot Challenges ------------ None Game ------ Seed GuidedTachyonNanosword Manual? 0 Play Time 00:11:54 Cumulative 2.3 hours Start 2024.07.07 @ 21:12:43 End 2024.07.07 @ 21:24:42 Sessions 1 Manual Loads 0 Difficulty Rogue Special Mode None Game No. 4 Rogue 4 Adventurer 0 Explorer 0 Win Type - Total 0 Types 0/0/0/0/0/0/0/0/0 Lore% 0 Gallery% 5 Achievement% 6 Wizard Run 0 Options --------- Layout 0 ASCII 1 Keyboard 0 Movement Mouse Keybinds 0 Fullscreen 2 Font 18/TerminusBold Map View 76x50 Zoom Use 76% Tactical HUD 1 Map Filters NONE Filters NONE Steam 1 RUN: cf68e8dd-a057-47ed-9acf-7e6150dde246